bitfinex/quotes_BTCUSD_20240828
["timestamp","ask_amount","ask_price","bid_price","bid_amount"]
[1724858564111,0.005,58839.0,58825.0,0.04203059]
[1724858564318,0.005,58839.0,58826.0,0.05589376]
[1724858564570,0.0791,58848.0,58834.0,0.0602]
[1724858564835,0.0602,58851.0,58835.0,0.00339822]
[1724858565050,0.01315,58853.0,58837.0,0.0813]
[1724858565258,0.01315,58853.0,58844.0,0.16994]
[1724858565259,0.16993,58848.0,58844.0,0.16994]
[1724858565482,0.174919,58852.0,58843.0,0.339883]
[1724858565689,0.16992,58851.0,58845.0,0.00339829]
[1724858565915,0.005,58851.0,58846.0,0.00339821]
[1724858566191,0.005,58851.0,58847.0,0.03772595]
[1724858566432,0.00815,58853.0,58852.0,0.169917]
[1724858566673,0.00815,58853.0,58852.0,0.509752]
[1724858567543,0.00815,58853.0,58852.0,0.849587]
[1724858567762,0.00815,58853.0,58852.0,0.509752]
[1724858567986,0.00815,58853.0,58852.0,1.189422]
[1724858568192,0.00815,58853.0,58852.0,0.9685292]
[1724858568614,0.00815,58853.0,58852.0,0.1189422]
[1724858568840,0.00815,58853.0,58852.0,0.169917]
[1724858569044,0.00815,58853.0,58848.0,0.339858]
[1724858569274,0.00815,58853.0,58845.0,0.06]
[1724858569275,0.00815,58853.0,58842.0,0.1]
[1724858569483,0.00815,58853.0,58847.0,0.33986]
[1724858569720,0.00815,58853.0,58848.0,0.0679728]
[1724858569957,0.00815,58853.0,58849.0,0.00339805]
[1724858570169,0.00815,58853.0,58852.0,0.169917]
[1724858570379,0.00815,58853.0,58852.0,0.8529846]
[1724858570615,0.00815,58853.0,58852.0,1.1928196]
[1724858570847,0.00815,58853.0,58852.0,0.96886896]
[1724858571286,0.00815,58853.0,58852.0,1.30870396]
[1724858571499,0.00815,58853.0,58852.0,0.62903396]
[1724858571714,0.00815,58853.0,58852.0,0.28919896]
[1724858571925,0.00815,58853.0,58852.0,0.509752]
[1724858572133,0.00815,58853.0,58852.0,0.849587]
[1724858572353,0.00815,58853.0,58852.0,1.189422]
[1724858573879,0.00815,58853.0,58852.0,0.509752]
[1724858574104,0.005,58845.0,58840.0,0.01088539]
[1724858574339,0.005,58845.0,58837.0,0.01596071]
[1724858574340,0.005,58845.0,58841.0,0.00339848]
[1724858574776,0.005,58845.0,58832.0,0.00020461]
[1724858574989,0.005,58845.0,58835.0,0.339929]
[1724858575277,0.005,58847.0,58836.0,0.169962]
[1724858575499,0.339872,58846.0,58838.0,0.339913]
[1724858575754,0.005,58846.0,58837.0,0.0169962]
[1724858575961,0.005,58838.0,58832.0,0.00020461]
[1724858576168,0.169965,58836.0,58832.0,0.00360348]
[1724858576403,0.169965,58836.0,58832.0,0.03796093]
[1724858576634,0.0805,58840.0,58837.0,0.169959]
[1724858576860,0.0805,58840.0,58838.0,0.17335473]
[1724858577100,0.0805,58840.0,58839.0,0.01733547]
[1724858577320,0.339925,58837.0,58830.0,0.169979]
[1724858577519,0.169965,58836.0,58832.0,0.00020461]
[1724858577729,0.339937,58835.0,58832.0,0.00020461]
[1724858577939,0.509917,58833.0,58832.0,0.00020461]
[1724858578145,0.339918,58838.0,58832.0,0.00020461]
[1724858578386,0.005,58837.0,58832.0,0.00020461]
[1724858578597,0.005,58841.0,58832.0,0.00020461]
[1724858578806,0.169959,58838.0,58834.0,0.169968]
[1724858579039,0.169963,58836.0,58835.0,0.01735711]
[1724858579242,0.169963,58836.0,58832.0,0.00020461]
[1724858579243,0.169967,58835.0,58832.0,0.00020461]
[1724858579495,0.01,58840.0,58833.0,0.169971]
[1724858579496,0.015,58840.0,58833.0,0.169971]
[1724858579720,0.169959,58838.0,58833.0,0.169971]
[1724858579923,0.339912,58839.0,58831.0,0.339955]
[1724858580139,0.005,58840.0,58832.0,0.07579106]
[1724858580376,0.005,58840.0,58832.0,0.00339894]
[1724858580377,0.339918,58838.0,58832.0,0.00339894]
[1724858580604,0.005,58840.0,58827.0,0.1]
[1724858580605,0.339922,58837.0,58827.0,0.1]
[1724858580809,0.174963,58837.0,58832.0,0.169974]
[1724858581087,0.16996,58838.0,58833.0,0.17337106]
[1724858581314,0.0961,58847.0,58834.0,0.01733711]
[1724858581518,0.0961,58847.0,58840.0,0.339899]
[1724858581833,0.0811,58847.0,58845.0,0.169935]
[1724858582026,0.00815,58853.0,58852.0,0.509752]
[1724858582236,0.00815,58853.0,58852.0,0.169917]
[1724858582461,0.00815,58853.0,58852.0,0.509752]
[1724858582675,0.00815,58853.0,58852.0,0.849587]
[1724858582927,0.00815,58853.0,58852.0,1.189422]
[1724858583170,0.00815,58853.0,58852.0,0.9748692]
[1724858583391,0.00815,58853.0,58852.0,0.6350342]
[1724858583616,0.00815,58853.0,58852.0,0.849587]
[1724858584045,0.00815,58853.0,58852.0,1.189422]
[1724858585630,0.00815,58853.0,58852.0,0.849587]
[1724858586062,0.00815,58853.0,58852.0,0.169917]
[1724858586302,0.00815,58853.0,58852.0,0.17331481]
[1724858586528,0.00815,58853.0,58852.0,0.53682129]
[1724858587833,0.00815,58853.0,58852.0,0.19698629]
[1724858588065,0.00815,58853.0,58852.0,0.02367148]
[1724858588520,0.00815,58853.0,58851.0,0.169919]
[1724858588735,0.00815,58853.0,58846.0,0.339866]
[1724858588994,0.00815,58853.0,58851.0,0.169919]
[1724858589239,0.00942001,58859.0,58854.0,0.339823]
[1724858589458,0.00942001,58859.0,58842.0,0.024424]
[1724858589680,0.17931701,58859.0,58851.0,0.339839]
[1724858589886,0.00942001,58859.0,58852.0,0.07136752]
[1724858590099,0.000815,58853.0,58852.0,0.51314882]
[1724858590324,0.000815,58853.0,58852.0,0.85298382]
[1724858590531,0.000815,58853.0,58852.0,0.9722674]
[1724858590753,0.000815,58853.0,58852.0,1.3121024]
[1724858591394,0.000815,58853.0,58852.0,0.96886958]
[1724858591599,0.000815,58853.0,58852.0,0.62903458]
[1724858591811,0.000815,58853.0,58852.0,0.96886958]
[1724858592707,0.000815,58853.0,58852.0,0.28919958]
[1724858592939,0.000815,58853.0,58852.0,0.169916]
[1724858593403,0.000815,58853.0,58852.0,0.509751]
[1724858593626,0.079315,58853.0,58845.0,0.0008965]
[1724858593855,0.000815,58853.0,58852.0,0.169917]
[1724858594111,0.000815,58853.0,58852.0,0.509752]
[1724858594342,0.000815,58853.0,58852.0,0.849587]
[1724858594576,0.000815,58853.0,58847.0,0.339864]
[1724858594841,0.169917,58852.0,58848.0,0.23924336]
[1724858595072,0.000815,58853.0,58848.0,0.06931736]
[1724858595287,0.000815,58853.0,58852.0,0.169917]
[1724858595498,0.0821,58866.0,58858.0,0.1699]
[1724858595711,0.00012,58864.0,58858.0,0.8495]
[1724858595934,0.00012,58864.0,58863.0,0.169886]
[1724858596166,0.00012,58864.0,58863.0,0.509658]
[1724858596812,0.00012,58864.0,58863.0,0.84943]
[1724858597075,0.00012,58864.0,58863.0,0.1252512]
[1724858597332,0.00012,58864.0,58863.0,0.85282701]
[1724858597758,0.00012,58864.0,58863.0,1.27069901]
[1724858598208,0.00012,58864.0,58863.0,1.267302]
[1724858598420,0.00012,58864.0,58863.0,0.92753]
[1724858598648,0.00012,58864.0,58863.0,1.267302]
[1724858598889,0.00012,58864.0,58863.0,1.4003622]
[1724858599111,0.00012,58864.0,58863.0,1.5003622]
[1724858599761,0.00012,58864.0,58863.0,1.51127608]
[1724858600196,0.00012,58864.0,58863.0,1.09340408]
[1724858600432,0.00012,58864.0,58863.0,0.7427182]
[1724858600643,0.00012,58864.0,58863.0,1.0824902]
[1724858601366,0.009009,58874.0,58863.0,0.2330602]
[1724858601572,0.009009,58874.0,58864.0,0.1]
[1724858601817,0.169869,58869.0,58865.0,0.169879]
[1724858602037,0.009009,58874.0,58863.0,0.339771]
[1724858602038,0.000817,58864.0,58863.0,0.339771]
[1724858602257,0.000817,58864.0,58863.0,0.5499641]
[1724858602687,0.000817,58864.0,58863.0,1.2295081]
[1724858602903,0.1707,58864.0,58863.0,0.0403071]
[1724858603114,0.005,58871.0,58865.0,0.169879]
[1724858603115,0.169869,58869.0,58865.0,0.169879]
[1724858603336,0.009009,58874.0,58866.0,0.00339688]
[1724858603549,0.009009,58874.0,58859.0,0.1]
[1724858603550,0.0818,58886.0,58867.0,0.1362]
[1724858603761,0.421439,58886.0,58868.0,0.12362]
[1724858603980,0.421439,58886.0,58869.0,0.339736]
[1724858604204,0.339646,58885.0,58878.0,0.169842]
[1724858604422,0.25162,58886.0,58878.0,0.509527]
[1724858604645,0.0818,58886.0,58878.0,0.9001647]
[1724858604877,0.0818,58886.0,58878.0,1.2398497]
[1724858605373,0.509395,58894.0,58878.0,1.2398497]
[1724858605374,0.0818,58894.0,58882.0,1.188817]
[1724858606014,0.005,58893.0,58882.0,0.509493]
[1724858606240,0.0818,58894.0,58882.0,0.60062962]
[1724858606462,0.0818,58894.0,58882.0,0.94029162]
[1724858606888,0.00814,58897.0,58882.0,1.34045362]
[1724858607109,0.00814,58897.0,58882.0,1.58461439]
[1724858607384,0.0004,58899.0,58882.0,1.58461439]
[1724858607385,0.0004,58899.0,58882.0,0.49779739]
[1724858607601,0.0004,58899.0,58898.0,0.93198829]
[1724858607872,0.0004,58899.0,58898.0,1.61112829]
[1724858608086,0.0004,58899.0,58898.0,2.05069829]
[1724858608546,0.0004,58899.0,58898.0,1.009425]
[1724858608809,0.0004,58899.0,58898.0,0.2782975]
[1724858609097,0.0004,58899.0,58898.0,0.509355]
[1724858609519,0.0004,58899.0,58898.0,0.848925]
[1724858609725,0.0004,58899.0,58898.0,0.509355]
[1724858610143,0.0004,58899.0,58898.0,0.848925]
[1724858610835,0.0004,58899.0,58898.0,0.609355]
[1724858611065,0.0004,58899.0,58898.0,0.2307205]
[1724858611298,0.0004,58899.0,58898.0,0.0609355]
[1724858611534,0.0004,58899.0,58895.0,0.10339518]
[1724858611795,0.0004,58899.0,58895.0,0.00339518]
[1724858612036,0.0004,58899.0,58892.0,0.1]
[1724858612286,0.169788,58897.0,58892.0,0.169801]
[1724858612526,0.339968,58899.0,58898.0,0.169785]
[1724858612527,0.0004,58899.0,58898.0,0.169785]
[1724858612765,0.169785,58898.0,58886.0,0.1]
[1724858613048,0.0004,58899.0,58892.0,0.339603]
[1724858613277,0.339587,58896.0,58883.0,0.01540811]
[1724858613497,0.339583,58896.0,58886.0,0.339635]
[1724858613750,0.00445777,58897.0,58886.0,0.339635]
[1724858613751,0.192795,58895.0,58887.0,0.13550431]
[1724858613993,0.023,58895.0,58889.0,0.16981]
[1724858614269,0.169797,58894.0,58890.0,0.06449493]
[1724858614480,0.023,58893.0,58890.0,0.06449493]
[1724858614693,0.001217,58899.0,58898.0,0.169785]
[1724858615116,0.001217,58899.0,58898.0,0.509355]
[1724858615323,0.001217,58899.0,58898.0,1.188495]
[1724858615833,0.001217,58899.0,58898.0,1.254895]
[1724858616572,0.001217,58899.0,58898.0,1.594465]
[1724858616875,0.001217,58899.0,58898.0,1.7539115]
[1724858617078,0.001217,58899.0,58898.0,1.4143415]
[1724858617792,0.001217,58899.0,58898.0,1.4224815]
[1724858618292,0.001217,58899.0,58898.0,1.0165115]
[1724858618754,0.001217,58899.0,58898.0,1.3560815]
[1724858619222,0.001217,58899.0,58898.0,1.7956515]
[1724858619943,0.001217,58899.0,58898.0,2.05208135]
[1724858620183,0.06399464,58919.0,58918.0,0.169727]
[1724858620411,0.06399464,58919.0,58918.0,0.50849149]
[1724858620698,0.00817,58923.0,58918.0,0.50849149]
[1724858620699,0.00817,58923.0,58922.0,0.509146]
[1724858620945,0.00817,58923.0,58922.0,1.188008]
[1724858621718,0.00817,58923.0,58918.0,0.05084915]
[1724858621969,0.00445777,58919.0,58906.0,0.50540786]
[1724858622212,0.339456,58918.0,58907.0,0.1]
[1724858622456,0.00445777,58919.0,58908.0,0.06054079]
[1724858622696,0.00445777,58919.0,58907.0,0.10339419]
[1724858622697,0.16973,58917.0,58909.0,0.00339427]
[1724858622934,0.023,58916.0,58909.0,0.00339427]
[1724858623168,0.0763,58916.0,58909.0,0.00339427]
[1724858623682,0.0763,58916.0,58905.0,0.1]
[1724858623683,0.169748,58911.0,58905.0,0.1]
[1724858623940,0.023,58915.0,58900.0,0.0605]
[1724858623941,0.509277,58907.0,58906.0,0.01]
[1724858624188,0.081,58907.0,58898.0,0.00818]
[1724858624429,0.33953,58905.0,58898.0,0.00818]
[1724858624703,0.005,58909.0,58898.0,0.00818]
[1724858624704,0.081,58914.0,58899.0,0.0445928]
[1724858624944,0.00445777,58908.0,58899.0,0.04119775]
[1724858625185,0.023,58913.0,58901.0,0.169774]
[1724858625419,0.00445777,58908.0,58902.0,0.02144064]
[1724858625647,0.023,58907.0,58900.0,0.169779]
[1724858625898,0.023,58913.0,58901.0,0.339552]
[1724858626123,0.023,58913.0,58899.0,0.04119775]
[1724858626124,0.023,58913.0,58902.0,0.00339465]
[1724858626352,0.023,58913.0,58908.0,0.169755]
[1724858626585,0.081,58914.0,58905.0,0.339526]
[1724858627088,0.339456,58918.0,58906.0,0.00339431]
[1724858627331,0.169728,58918.0,58910.0,0.169748]
[1724858627571,0.169728,58918.0,58900.0,0.11412378]
[1724858627572,0.509233,58912.0,58911.0,0.0169748]
[1724858627812,0.00445777,58917.0,58903.0,0.169769]
[1724858628060,0.362468,58916.0,58904.0,0.10339452]
[1724858628296,0.0806,58919.0,58911.0,0.169747]
[1724858628549,0.0806,58919.0,58913.0,0.339482]
[1724858628791,0.169712,58924.0,58912.0,0.0169747]
[1724858629032,0.0806,58925.0,58917.0,0.169728]
[1724858629268,0.0806,58925.0,58918.0,0.00339398]
[1724858629494,0.420016,58925.0,58918.0,0.00339398]
[1724858629721,0.177884,58923.0,58918.0,0.00339398]
[1724858629951,0.347598,58923.0,58919.0,0.0512594]
[1724858630191,0.347598,58923.0,58913.0,0.16974]
[1724858630192,0.169725,58919.0,58913.0,0.16974]
[1724858630409,0.169736,58915.0,58914.0,0.05262477]
[1724858630654,0.339472,58915.0,58910.0,4e-05]
[1724858630904,0.592142,58911.0,58910.0,4e-05]
[1724858631173,1.02349477,58911.0,58910.0,4e-05]
[1724858631437,2.04697977,58911.0,58910.0,4e-05]
[1724858631674,2.04697977,58911.0,58898.0,0.03204]
[1724858631675,0.97656777,58899.0,58898.0,0.03204]
[1724858631909,0.0829,58903.0,58898.0,0.03204]
[1724858632134,0.169776,58901.0,58898.0,0.03204]
[1724858632374,0.023,58902.0,58898.0,0.03204]
[1724858632375,0.169779,58900.0,58898.0,0.03204]
[1724858632608,0.532346,58899.0,58898.0,0.03204]
[1724858632846,1.22093177,58899.0,58898.0,0.03204]
[1724858633824,1.36013177,58899.0,58898.0,0.03204]
[1724858635144,1.38674681,58899.0,58898.0,0.03204]
[1724858635598,1.72631081,58899.0,58898.0,0.03204]
[1724858636485,2.06587481,58899.0,58898.0,0.01273926]
[1724858636747,0.59744177,58883.0,58874.0,0.50540786]
[1724858636948,1.97854306,58883.0,58874.0,0.50540786]
[1724858637162,1.97854306,58883.0,58862.0,0.339775]
[1724858637163,1.63888706,58883.0,58862.0,0.339775]
[1724858637377,1.63888706,58883.0,58859.0,0.3406897]
[1724858637582,1.66550913,58883.0,58862.0,0.339772]
[1724858637790,1.72840913,58883.0,58862.0,0.339772]
[1724858637997,1.75140913,58883.0,58866.0,0.169875]
[1724858638211,1.38927584,58883.0,58862.0,0.339772]
[1724858638426,1.38927584,58883.0,58862.0,0.169887]
[1724858638636,1.38927584,58883.0,58862.0,0.339774]
[1724858638863,1.38927584,58883.0,58859.0,0.0008987]
[1724858638864,1.72893184,58883.0,58859.0,0.0008987]
[1724858639102,2.16858784,58883.0,58859.0,0.0008987]
[1724858639314,1.82872749,58883.0,58859.0,0.0008987]
[1724858639992,1.82872749,58883.0,58860.0,0.00339734]
[1724858640470,1.82872749,58883.0,58861.0,0.16989]
[1724858640685,1.82872749,58883.0,58859.0,0.1707947]
[1724858640904,0.62385949,58883.0,58869.0,0.0829]
[1724858641176,0.03587549,58883.0,58873.0,0.339713]
[1724858641427,0.03587549,58883.0,58876.0,0.339693]
[1724858641649,0.03587549,58883.0,58881.0,0.169833]
[1724858641861,0.03587549,58883.0,58882.0,0.0509949]
[1724858642073,0.54535949,58883.0,58882.0,0.0509949]
[1724858642323,0.88501549,58883.0,58882.0,4e-05]
[1724858642577,1.22467149,58883.0,58882.0,4e-05]
[1724858642800,0.03587549,58883.0,58882.0,4e-05]
[1724858643020,0.20570349,58883.0,58882.0,4e-05]
[1724858643241,0.54535949,58883.0,58882.0,4e-05]
[1724858644147,0.90801549,58883.0,58882.0,4e-05]
[1724858644369,0.03141772,58883.0,58882.0,4e-05]
[1724858644578,0.03141772,58883.0,58878.0,0.00339635]
[1724858644579,0.00486665,58882.0,58878.0,0.00339635]
[1724858644819,0.169855,58874.0,58868.0,0.1432]
[1724858645041,0.00445777,58875.0,58870.0,0.33973]
[1724858645269,7.1e-05,58882.0,58871.0,0.00339675]
[1724858645270,0.00925342,58881.0,58871.0,0.00339675]
[1724858645485,0.00445777,58878.0,58877.0,0.509536]
[1724858645727,0.02745777,58878.0,58877.0,0.5944595]
[1724858645959,7.1e-05,58882.0,58877.0,0.5944595]
[1724858645960,7.1e-05,58882.0,58881.0,0.509502]
[1724858646679,7.1e-05,58882.0,58881.0,0.91057]
[1724858647123,0.00445777,58899.0,58898.0,0.509355]
[1724858647367,0.00445777,58899.0,58895.0,0.169792]
[1724858647614,0.00445777,58897.0,58884.0,0.0677813]
[1724858647854,0.00445777,58897.0,58887.0,0.1]
[1724858648073,0.339539,58904.0,58887.0,0.1]
[1724858648074,0.00445777,58906.0,58905.0,0.169764]
[1724858648294,0.0778,58907.0,58906.0,0.169761]
[1724858648295,0.00445777,58907.0,58906.0,0.169761]
[1724858648507,0.00479565,58915.0,58906.0,0.00339455]
[1724858648508,0.00445777,58915.0,58906.0,0.00339455]
[1724858648767,0.00527377,58918.0,58914.0,0.339476]
[1724858649030,0.00445777,58917.0,58916.0,0.509199]
[1724858649714,0.00925342,58916.0,58915.0,0.0339476]
[1724858649944,0.00445777,58915.0,58911.0,0.00339448]
[1724858650174,0.00445777,58915.0,58901.0,0.063]
[1724858650175,0.00445777,58915.0,58909.0,0.339505]
[1724858650415,0.00445777,58911.0,58910.0,0.0679015]
[1724858650659,0.00445777,58911.0,58885.0,0.005]
[1724858650660,0.169774,58902.0,58894.0,0.339593]
[1724858650887,0.17425377,58894.0,58893.0,0.0612]
[1724858651120,0.339512,58908.0,58888.0,0.05054079]
[1724858651121,0.00445777,58891.0,58888.0,0.05054079]
[1724858651353,0.0812,58896.0,58880.0,0.35561894]
[1724858651354,0.00445777,58890.0,58880.0,0.36837649]
[1724858651588,0.00445777,58890.0,58881.0,0.08166784]
[1724858651803,0.17429177,58881.0,58880.0,0.02870449]
[1724858652021,0.53695977,58881.0,58880.0,0.02870449]
[1724858652234,0.87662777,58881.0,58880.0,0.02870449]
[1724858652445,0.53695977,58881.0,58880.0,0.02870449]
[1724858652892,0.54175542,58881.0,58880.0,0.02870449]
[1724858653111,0.54175542,58881.0,58880.0,0.21129802]
[1724858653112,0.023,58881.0,58880.0,0.21129802]
[1724858653344,0.00479565,58887.0,58886.0,0.169819]
[1724858653345,0.00445777,58887.0,58886.0,0.169819]
[1724858653577,0.023,58887.0,58886.0,0.169819]
[1724858653795,0.023,58887.0,58886.0,0.849097]
[1724858654102,0.17428877,58882.0,58881.0,0.0008987]
[1724858654346,0.00925342,58891.0,58881.0,0.0008987]
[1724858654563,0.0779,58894.0,58881.0,0.0008987]
[1724858654564,0.00925342,58889.0,58883.0,0.169827]
[1724858654774,0.00445777,58886.0,58884.0,0.02121877]
[1724858655013,0.023,58885.0,58884.0,0.02121877]
[1724858655266,0.25698442,58882.0,58881.0,0.0008987]
[1724858655511,0.93630842,58882.0,58881.0,0.0008987]
[1724858655747,0.95930842,58882.0,58881.0,0.0008987]
[1724858655976,1.29897042,58882.0,58881.0,0.0008987]
[1724858656190,0.95930842,58882.0,58881.0,0.0008987]
[1724858656875,1.29897042,58882.0,58881.0,0.0008987]
[1724858657103,1.32559565,58882.0,58881.0,0.0008987]
[1724858657324,1.80420722,58882.0,58881.0,0.0008987]
[1724858657577,1.80420722,58882.0,58881.0,0.0009387]
[1724858657578,1.90420722,58882.0,58881.0,0.0009387]
[1724858657815,1.19367165,58879.0,58853.0,0.169913]
[1724858658030,0.509683,58860.0,58853.0,0.169913]
[1724858658267,0.19735177,58860.0,58859.0,0.05152936]
[1724858658708,0.19735177,58860.0,58859.0,0.0008987]
[1724858658709,0.22398206,58860.0,58859.0,0.0008987]
[1724858658946,0.90356006,58860.0,58859.0,0.0008987]
[1724858659534,1.24334906,58860.0,58859.0,0.0008987]
[1724858659738,1.58793371,58860.0,58859.0,0.0008987]
[1724858659941,1.72688328,58860.0,58859.0,0.0008987]
[1724858660314,1.80368328,58860.0,58859.0,0.0008987]
[1724858661228,2.15047228,58860.0,58859.0,0.0008987]
[1724858661446,1.90368328,58860.0,58859.0,0.0008987]
[1724858661668,1.76473371,58860.0,58859.0,0.0008987]
[1724858661922,0.96215571,58860.0,58859.0,0.0008987]
[1724858662141,0.62236671,58860.0,58859.0,0.0008987]
[1724858662576,0.96215571,58860.0,58859.0,0.0008987]
[1724858662815,1.30194471,58860.0,58859.0,0.0008987]
[1724858663027,1.43213918,58860.0,58859.0,0.0008987]
[1724858663255,1.43213918,58860.0,58859.0,0.0006987]
[1724858663256,1.87192818,58860.0,58859.0,0.0006987]
[1724858663737,1.89492818,58860.0,58859.0,0.0006987]
[1724858663974,1.53848342,58853.0,58852.0,4e-05]
[1724858664190,1.61418342,58853.0,58852.0,4e-05]
[1724858664433,1.27435442,58853.0,58852.0,4e-05]
[1724858664868,1.64082331,58853.0,58852.0,4e-05]
[1724858665338,1.80482331,58853.0,58852.0,4e-05]
[1724858665559,1.93501778,58853.0,58852.0,4e-05]
[1724858666033,1.93137789,58853.0,58852.0,4e-05]
[1724858666260,1.80118342,58853.0,58852.0,4e-05]
[1724858666491,1.80118342,58853.0,58840.0,4e-05]
[1724858666492,1.53421065,58846.0,58840.0,4e-05]
[1724858666709,1.61386842,58846.0,58840.0,4e-05]
[1724858667197,1.61386842,58846.0,58808.0,0.01097289]
[1724858667198,0.93924542,58824.0,58810.0,0.0309365]
[1724858667441,0.93924542,58824.0,58822.0,0.51439486]
[1724858667655,1.27924242,58824.0,58822.0,0.008987]
[1724858667873,1.61923942,58824.0,58822.0,0.008987]
[1724858668088,2.06423642,58824.0,58822.0,0.008987]
[1724858668330,1.62426642,58823.0,58822.0,0.00531344]
[1724858668541,1.62426642,58823.0,58810.0,0.0309365]
[1724858668542,0.51935242,58812.0,58810.0,0.0309365]
[1724858668758,2.14318563,58812.0,58810.0,0.0309365]
[1724858668987,2.30578563,58812.0,58810.0,0.0309365]
[1724858669231,2.31078563,58812.0,58810.0,0.0309365]
[1724858669501,2.65285163,58812.0,58810.0,0.0309365]
[1724858669966,1.67179126,58811.0,58810.0,0.0309365]
[1724858670191,0.93997842,58801.0,58800.0,0.008987]
[1724858670414,1.32492226,58801.0,58800.0,0.008987]
[1724858670638,1.34792226,58801.0,58800.0,0.008987]
[1724858670887,0.03225342,58801.0,58800.0,0.008987]
[1724858671102,0.17931842,58801.0,58800.0,0.008987]
[1724858671563,0.51944842,58801.0,58800.0,0.008987]
[1724858671783,0.34011,58805.0,58800.0,0.008987]
[1724858671784,0.00445777,58805.0,58800.0,0.008987]
[1724858672025,0.00445777,58806.0,58805.0,0.170053]
[1724858672291,0.00925342,58822.0,58807.0,0.0829]
[1724858672508,0.00925342,58820.0,58819.0,0.170013]
[1724858672719,0.00925342,58820.0,58819.0,0.2210181]
[1724858672955,0.00925342,58820.0,58819.0,0.0510051]
[1724858672956,0.00445777,58820.0,58819.0,0.0510051]
[1724858673189,0.00925342,58817.0,58807.0,0.0829]
[1724858673412,0.00925342,58817.0,58816.0,0.170021]
[1724858673413,0.00445777,58817.0,58816.0,0.170021]
[1724858673645,0.00445777,58817.0,58808.0,0.02471]
[1724858674089,0.00925342,58817.0,58813.0,0.170028]
[1724858674310,0.00445777,58817.0,58808.0,0.02471]
[1724858674604,0.00445777,58820.0,58819.0,0.170013]
[1724858674835,0.00445777,58826.0,58823.0,0.17]
[1724858675072,0.00445777,58825.0,58823.0,0.017]
[1724858675295,0.00445777,58825.0,58824.0,0.574195]
[1724858675527,0.00925342,58825.0,58824.0,0.0642]
[1724858675771,0.17924842,58825.0,58824.0,0.0642]
[1724858676009,0.17924842,58825.0,58817.0,0.076]
[1724858676010,0.00445777,58820.0,58818.0,0.0657]
[1724858676232,0.340041,58817.0,58811.0,0.0657]
[1724858676441,0.00445777,58814.0,58813.0,0.170028]
[1724858676673,0.00445777,58814.0,58806.0,0.0629]
[1724858676674,0.00445777,58812.0,58806.0,0.0629]
[1724858676901,0.00445777,58807.0,58799.0,0.0629]
[1724858677195,0.17452277,58801.0,58791.0,0.0004]
[1724858677404,0.85957842,58801.0,58791.0,0.0004]
[1724858677648,0.88257842,58801.0,58791.0,0.0004]
[1724858677894,1.22270842,58801.0,58791.0,0.0004]
[1724858678128,0.88257842,58801.0,58791.0,0.0004]
[1724858678353,1.00484866,58801.0,58791.0,0.0004]
[1724858678575,0.54244842,58801.0,58791.0,0.0004]
[1724858678804,0.20231842,58801.0,58795.0,0.170081]
[1724858679036,0.54244842,58801.0,58792.0,0.170089]
[1724858679260,0.19752277,58801.0,58793.0,0.340176]
[1724858679486,0.88257842,58801.0,58792.0,0.17009]
[1724858679748,0.02745777,58801.0,58799.0,0.17007]
[1724858679983,0.02745777,58801.0,58793.0,0.00340153]
[1724858680215,0.88257842,58801.0,58792.0,0.170089]
[1724858680447,0.88257842,58801.0,58793.0,0.170087]
[1724858680659,0.02665698,58806.0,58793.0,0.170087]
[1724858680660,0.00445777,58803.0,58800.0,0.085587]
[1724858680871,0.02665698,58806.0,58800.0,0.085587]
[1724858680872,0.03111475,58806.0,58805.0,0.170053]
[1724858681132,0.00445777,58811.0,58809.0,0.170041]
[1724858681376,0.00445777,58811.0,58805.0,0.402507]
[1724858681377,0.00445777,58812.0,58811.0,0.170036]
[1724858681624,0.00445777,58814.0,58813.0,0.34006]
[1724858681831,0.00445777,58816.0,58812.0,0.340066]
[1724858682065,0.00445777,58816.0,58806.0,0.0170053]
[1724858682066,0.17449877,58810.0,58806.0,0.0170053]
[1724858682294,0.00445777,58808.0,58805.0,0.232453]
[1724858682507,0.00425335,58808.0,58805.0,0.402503]
[1724858682720,0.00425335,58808.0,58807.0,0.170047]
[1724858683307,0.02725335,58808.0,58807.0,0.170047]
[1724858683511,0.02725335,58808.0,58805.0,0.402503]
[1724858683512,0.05390606,58808.0,58805.0,0.0624]
[1724858683708,0.023,58807.0,58805.0,0.0624]
[1724858683965,0.023,58807.0,58806.0,0.17005]
[1724858684191,0.023,58807.0,58806.0,0.850252]
[1724858684417,0.023,58807.0,58806.0,1.19375374]
[1724858684635,0.023,58807.0,58806.0,1.190353]
[1724858684950,0.023,58807.0,58806.0,0.850252]
[1724858685056,0.02665271,58808.0,58807.0,0.850237]
[1724858685300,0.02665271,58808.0,58807.0,1.270732]
[1724858685554,0.339982,58827.0,58807.0,1.270732]
[1724858685555,0.00425335,58829.0,58823.0,0.930407]
[1724858685777,0.00425335,58829.0,58823.0,1.1236502]
[1724858686012,0.00507135,58824.0,58823.0,0.2736432]
[1724858686254,0.000818,58824.0,58823.0,0.656604]
[1724858686498,0.000818,58824.0,58817.0,0.0641]
[1724858686499,0.00425335,58821.0,58817.0,0.0641]
[1724858686729,0.00425335,58823.0,58822.0,0.170004]
[1724858686960,0.000818,58824.0,58823.0,0.170001]
[1724858687200,0.000818,58824.0,58823.0,0.56440569]
[1724858687424,0.000818,58824.0,58823.0,0.5610061]
[1724858687661,0.170023,58816.0,58811.0,0.170034]
[1724858687876,0.00425335,58817.0,58813.0,0.17003]
[1724858688112,0.00425335,58817.0,58814.0,0.170025]
[1724858688349,0.00425335,58817.0,58814.0,0.17342614]
[1724858688566,0.023,58816.0,58815.0,0.170024]
[1724858688812,0.02664821,58817.0,58816.0,0.510064]
[1724858689031,0.04964821,58817.0,58816.0,0.170021]
[1724858689455,0.04964821,58817.0,58816.0,0.85350704]
[1724858689661,0.02664821,58817.0,58816.0,0.98535558]
[1724858690780,0.02664821,58817.0,58816.0,0.98195554]
[1724858691262,0.02664821,58817.0,58816.0,0.64191254]
[1724858691511,0.02664821,58817.0,58816.0,0.510064]
[1724858692004,0.11290156,58817.0,58812.0,0.1]
[1724858692247,0.00425335,58811.0,58810.0,0.170039]